bitfinex-derivatives/quotes_SOLF0:USTF0_20241017
["timestamp","ask_amount","ask_price","bid_price","bid_amount"]
[1729152444385,9.06,152.62,152.61,3.23653467]
[1729152445080,12.3368,152.63,152.61,3.23653467]
[1729152450486,12.3368,152.63,152.6,3.2773]
[1729152450687,12.3368,152.63,152.58,9.06]
[1729152450688,9.06,152.63,152.59,3.2774]
[1729152450891,9.06,152.63,152.58,9.06]
[1729152452488,12.3367,152.63,152.61,3.2771]
[1729152455788,12.3369,152.62,152.6,3.2773]
[1729152459105,1.3471,152.71,152.63,3.2765]
[1729152459106,3.2761,152.66,152.63,3.2765]
[1729152459297,4.72,152.67,152.63,3.26100865]
[1729152460099,3.2761,152.66,152.63,6.53760865]
[1729152461204,12.3361,152.66,152.63,6.53760865]
[1729152462600,9.06,152.66,152.63,3.26100865]
[1729152462802,9.06,152.66,152.64,3.2763]
[1729152463002,9.06,152.66,152.65,3.29390897]
[1729152463203,12.3362,152.66,152.63,3.2765]
[1729152463603,9.06,152.65,152.63,3.2765]
[1729152463810,9.06,152.65,152.63,6.61366795]
[1729152464409,9.06,152.65,152.63,3.2765]
[1729152466407,12.3363,152.65,152.62,3.2767]
[1729152466607,9.06,152.64,152.62,3.2767]
[1729152469116,12.3365,152.64,152.62,3.2767]
[1729152469823,3.2771,152.61,152.59,3.2775]
[1729152470018,9.06,152.6,152.56,4.72]
[1729152470515,9.06,152.6,152.58,3.2776]
[1729152470716,9.06,152.6,152.55,9.06]
[1729152470917,12.3374,152.6,152.57,3.2778]
[1729152471614,9.06,152.6,152.57,3.2778]
[1729152471815,3.2776,152.59,152.57,3.2778]
[1729152472114,9.06,152.58,152.57,3.2778]
[1729152472424,9.06,152.58,152.56,3.2781]
[1729152472616,12.3376,152.59,152.56,3.2781]
[1729152473216,9.06,152.58,152.56,3.2781]
[1729152473706,12.3379,152.58,152.55,3.2783]
[1729152474307,9.06,152.58,152.54,1.4289]
[1729152474518,9.06,152.58,152.55,3.2783]
[1729152474918,9.06,152.58,152.56,3.2781]
[1729152476918,3.2781,152.57,152.54,4.7074]
[1729152477112,3.2781,152.57,152.53,3.28627874]
[1729152477309,9.06,152.58,152.52,9.06]
[1729152477513,3.278,152.57,152.54,3.2785]
[1729152478020,9.06,152.57,152.51,9.06]
[1729152478212,3.2782,152.56,152.53,3.2787]
[1729152479316,9.06,152.55,152.53,3.2787]
[1729152481523,9.06,152.55,152.51,12.32579717]
[1729152481719,9.06,152.55,152.51,9.06]
[1729152482119,9.06,152.55,152.53,3.2787]
[1729152482518,9.06,152.55,152.51,14.00816512]
[1729152483122,9.06,152.55,152.52,3.279]
[1729152483314,9.06,152.55,152.51,12.36853042]
[1729152483619,3.2783,152.56,152.52,9.06]
[1729152484019,12.338,152.57,152.54,3.2786]
[1729152489023,12.3383,152.56,152.53,6.48480747]
[1729152489224,9.06,152.56,152.51,9.06]
[1729152489526,12.3382,152.56,152.52,3.2789]
[1729152489727,4.72,152.59,152.52,9.06]
[1729152490032,9.06,152.57,152.52,9.06]
[1729152490232,9.06,152.57,152.55,3.2782]
[1729152491531,9.06,152.56,152.55,3.2782]
[1729152492728,9.06,152.56,152.54,3.2784]
[1729152492917,3.2781,152.57,152.54,3.2784]
[1729152493125,9.06,152.56,152.54,3.2784]
[1729152496633,3.2781,152.57,152.54,3.2784]
[1729152496833,9.06,152.56,152.54,3.2784]
[1729152498928,12.3381,152.57,152.54,3.2784]
[1729152499235,9.06,152.57,152.55,3.2782]
[1729152501738,12.338,152.57,152.55,3.2782]
[1729152504739,3.278,152.57,152.55,3.2782]
[1729152504936,9.06,152.56,152.55,3.2782]
[1729152508844,12.3382,152.56,152.54,3.2786]
[1729152509049,9.06,152.55,152.51,9.06]
[1729152509351,9.06,152.55,152.52,1.63969895]
[1729152509546,9.06,152.55,152.53,4.91839895]
[1729152509750,9.06,152.55,152.53,3.2787]
[1729152509947,12.3384,152.55,152.53,3.2787]
[1729152510448,12.3384,152.55,152.52,3.2789]
[1729152510650,9.06,152.55,152.53,1.63972136]
[1729152510954,9.06,152.55,152.53,3.2787]
[1729152512051,12.3384,152.55,152.53,3.2787]
[1729152512846,9.06,152.57,152.55,3.2784]
[1729152515352,12.3381,152.57,152.54,3.2786]
[1729152515747,9.06,152.55,152.54,3.2786]
[1729152516256,9.06,152.55,152.53,3.2787]
[1729152516655,9.06,152.54,152.53,3.2787]
[1729152516854,12.3387,152.54,152.51,3.2791]
[1729152517050,9.06,152.52,152.51,3.2791]
[1729152517250,9.06,152.52,152.51,4.91896784]
[1729152519752,9.06,152.52,152.51,3.2791]
[1729152520059,9.06,152.52,152.51,4.91900033]
[1729152520655,9.06,152.54,152.51,1.63990033]
[1729152520850,4.72,152.55,152.53,3.2787]
[1729152521862,4.72,152.55,152.51,9.06]
[1729152522358,4.72,152.55,152.52,1.63977558]
[1729152522660,7.9985,152.55,152.52,3.2789]
[1729152522958,17.0585,152.55,152.52,3.2789]
[1729152525367,7.9985,152.55,152.53,3.2788]
[1729152525563,4.72,152.55,152.53,3.2788]
[1729152525758,4.72,152.55,152.51,9.06]
[1729152525960,4.72,152.55,152.53,3.2787]
[1729152528262,13.78,152.55,152.52,3.279]
[1729152528466,4.72,152.55,152.51,9.06]
[1729152528666,4.72,152.55,152.52,1.63979955]
[1729152528966,4.72,152.55,152.53,3.2788]
[1729152529167,4.72,152.55,152.51,9.06]
[1729152529469,4.72,152.55,152.54,3.2786]
[1729152531270,4.72,152.55,152.53,3.2787]
[1729152531873,3.2782,152.56,152.53,3.2787]
[1729152534171,3.2782,152.56,152.51,9.06]
[1729152534363,3.2782,152.56,152.54,3.2786]
[1729152537372,3.2782,152.56,152.55,1.63979904]
[1729152537877,12.3382,152.56,152.53,3.2787]
[1729152538077,12.3382,152.56,152.54,1.639837]
[1729152538270,12.3382,152.56,152.53,3.2787]
[1729152538466,12.3382,152.56,152.54,1.639837]
[1729152538675,12.3382,152.56,152.55,1.639837]
[1729152538979,12.3382,152.56,152.51,9.06]
[1729152538980,9.06,152.56,152.51,9.06]
[1729152539170,9.06,152.56,152.52,1.63979994]
[1729152539371,9.06,152.56,152.53,1.63979994]
[1729152539674,9.06,152.56,152.54,1.63979994]
[1729152539972,9.06,152.56,152.55,1.63979994]
[1729152540173,12.3382,152.56,152.55,1.63979994]
[1729152542779,70.82,152.66,152.55,1.63979994]
[1729152543075,70.82,152.66,152.57,9.06]
[1729152543076,9.06,152.62,152.57,9.06]
[1729152543281,9.06,152.61,152.58,1.63979994]
[1729152543581,9.06,152.61,152.56,3.2781]
[1729152543783,9.06,152.58,152.57,1.63956877]
[1729152544184,12.3377,152.58,152.57,1.63956877]
[1729152549276,3.2781,152.57,152.54,3.2785]
[1729152549475,3.2781,152.57,152.55,1.6396235]
[1729152549686,3.2781,152.57,152.56,1.6396235]
[1729152549884,3.2779,152.58,152.56,4.9177235]
[1729152550089,3.2779,152.58,152.57,1.6396235]
[1729152553082,3.2779,152.58,152.55,3.2783]
[1729152553384,3.2779,152.58,152.56,1.63962317]
[1729152553581,3.2779,152.58,152.57,1.63962317]
[1729152553986,3.2785,152.55,152.5,9.3068177]
[1729152554184,9.06,152.54,152.5,4.5868177]
[1729152554590,9.06,152.54,152.51,3.2791]
[1729152554591,12.3387,152.54,152.51,3.2791]
[1729152554893,12.3387,152.54,152.5,4.5868177]
[1729152555488,12.3387,152.54,152.51,3.2792]
[1729152562493,9.06,152.54,152.5,4.5868177]
[1729152562694,9.06,152.54,152.48,66.84026158]
[1729152562695,9.06,152.54,152.48,10.4337]
[1729152563001,9.06,152.52,152.45,4.72]
[1729152563196,12.3392,152.52,152.49,3.2796]
[1729152563394,12.3392,152.52,152.49,3.20618974]
[1729152563395,3.2792,152.52,152.49,3.20618974]
[1729152563594,3.2792,152.52,152.48,9.06]
[1729152564100,3.2792,152.52,152.49,3.20094175]
[1729152564399,3.2792,152.52,152.5,3.2794]
[1729152565993,3.2792,152.52,152.49,6.48054175]
[1729152566699,12.3392,152.52,152.49,6.48054175]
[1729152567802,12.3394,152.51,152.48,3.2798]
[1729152568500,9.06,152.51,152.45,3.31793067]
[1729152568702,9.06,152.48,152.38,10.62910745]
[1729152568898,4.72,152.47,152.43,9.06]
[1729152569304,1.374,152.53,152.46,9.06]
[1729152569597,4.72,152.52,152.47,9.06]
[1729152569797,3.2794,152.51,152.48,3.2797]
[1729152572308,13.78,152.52,152.47,9.06]
[1729152572610,3.2795,152.5,152.47,12.34]
[1729152575508,3.2795,152.5,152.47,3.28]
[1729152576302,9.06,152.5,152.46,9.06]
[1729152576603,3.2798,152.49,152.46,12.3401]
[1729152577708,9.06,152.5,152.46,3.2801]
[1729152577914,3.2799,152.48,152.46,3.2801]
[1729152578215,7.9999,152.48,152.46,3.2801]
[1729152580114,4.72,152.48,152.46,3.2801]
[1729152582713,4.72,152.48,152.45,9.06]
[1729152582913,4.72,152.48,152.44,15.17612675]
[1729152583118,9.06,152.47,152.44,4.69372675]
[1729152583418,9.06,152.46,152.44,6.62192675]
[1729152583619,12.3402,152.47,152.44,6.62192675]
[1729152587724,9.06,152.46,152.44,6.62192675]
[1729152588723,9.06,152.46,152.41,9.06]
[1729152588923,12.3405,152.46,152.43,3.2808]
[1729152589824,3.2805,152.46,152.43,3.2808]
[1729152590224,3.2799,152.48,152.42,12.341]
[1729152590416,3.2799,152.48,152.41,3.22308543]
[1729152590417,4.72,152.47,152.43,9.06]
[1729152590829,4.72,152.47,152.45,3.2804]
[1729152592827,8.0002,152.47,152.45,3.2804]
[1729152595019,1.374,152.53,152.43,9.06]
[1729152595225,9.06,152.49,152.43,9.06]
[1729152595626,4.72,152.48,152.46,3.2802]
[1729152596125,8.0,152.48,152.45,3.2804]
[1729152597823,3.2802,152.47,152.45,3.2804]
[1729152601527,3.2802,152.47,152.44,3.2806]
[1729152601830,3.2801,152.47,152.43,9.06]
[1729152602032,4.72,152.48,152.46,3.2803]
[1729152602229,72.2539,152.55,152.41,4.66398543]
[1729152602230,3.2787,152.54,152.47,9.06]
[1729152602429,12.3387,152.54,152.49,9.06]
[1729152602628,4.72,152.53,152.49,9.06]
[1729152602825,13.78,152.53,152.49,3.26979627]
[1729152603029,13.78,152.53,152.42,4.72]
[1729152603030,9.06,152.52,152.48,9.06]
[1729152603332,9.06,152.52,152.47,9.06]
[1729152603530,3.2793,152.51,152.47,9.06]
[1729152603732,9.06,152.49,152.44,9.06]
[1729152603941,3.2799,152.48,152.44,9.06]
[1729152604239,12.3399,152.48,152.45,3.2805]
[1729152604533,3.2802,152.47,152.42,9.06]
[1729152605132,3.2802,152.47,152.44,3.2807]
[1729152605439,9.06,152.46,152.44,3.2807]
[1729152605626,9.06,152.46,152.43,3.2809]
[1729152605627,12.3405,152.46,152.43,3.2809]
[1729152605827,4.72,152.45,152.43,3.2809]
[1729152606829,17.0606,152.45,152.42,3.281]
[1729152608335,3.281,152.43,152.41,3.22308543]
[1729152608833,12.3408,152.44,152.41,6.50438543]
[1729152610233,9.06,152.42,152.4,1.3924]
[1729152610437,9.06,152.42,152.4,3.2816]
[1729152610738,9.06,152.42,152.4,6.54043651]
[1729152611235,13.78,152.41,152.37,3.27492062]
[1729152611531,9.06,152.39,152.37,3.27492062]
[1729152611732,4.72,152.4,152.37,3.2822]
[1729152611925,4.72,152.4,152.36,13.71229328]
[1729152612130,4.72,152.4,152.36,10.5109]
[1729152612739,4.72,152.4,152.36,13.73067511]
[1729152613637,9.06,152.41,152.36,13.73067511]
[1729152613839,13.78,152.41,152.36,13.73067511]
[1729152614044,13.78,152.41,152.38,3.2819]
[1729152614938,17.0615,152.41,152.38,3.2819]
[1729152615138,4.72,152.41,152.39,3.2818]
[1729152615737,13.78,152.41,152.39,3.2818]
[1729152616135,13.78,152.41,152.38,3.282]
[1729152616534,17.0614,152.41,152.38,3.282]
[1729152617136,13.78,152.41,152.36,13.73067511]
[1729152617344,3.2818,152.39,152.36,7.95307511]
[1729152617544,9.06,152.4,152.36,3.21977511]
[1729152617739,9.06,152.38,152.33,1.4467]
[1729152618040,12.3422,152.38,152.35,3.2826]
[1729152618240,12.3422,152.38,152.36,3.29811289]
[1729152618833,9.06,152.38,152.36,3.29811289]
[1729152620140,3.2826,152.36,152.33,3.283]
[1729152620440,9.06,152.34,152.32,1.3626]
[1729152620640,9.06,152.34,152.29,10.4831]
[1729152620641,9.06,152.34,152.29,9.06]
[1729152620837,12.3431,152.34,152.31,3.2835]
[1729152621236,8.0025,152.36,152.33,3.283]
[1729152621434,9.06,152.35,152.28,3.29867849]
[1729152621634,9.06,152.35,152.26,9.0249]
[1729152621841,9.06,152.35,152.29,9.06]
[1729152622043,3.2831,152.34,152.3,3.2837]
[1729152622234,9.06,152.35,152.29,9.06]
[1729152622545,3.283,152.34,152.31,3.2834]
[1729152622737,9.06,152.35,152.29,9.06]
[1729152623338,3.283,152.34,152.3,3.2836]
[1729152623547,9.06,152.33,152.3,3.2836]
[1729152623745,3.2834,152.32,152.28,3.2841]
[1729152623951,12.3434,152.32,152.28,3.2841]
[1729152624245,9.06,152.32,152.27,9.06]
[1729152624638,9.06,152.32,152.29,3.2838]
[1729152626038,12.3434,152.32,152.29,3.2838]
[1729152627143,4.72,152.36,152.27,9.06]
[1729152627341,3.2831,152.34,152.31,3.2835]
[1729152629444,12.3431,152.34,152.31,3.2835]
[1729152632947,9.06,152.34,152.29,9.06]
[1729152633146,3.2833,152.33,152.3,3.2836]
[1729152634747,3.2833,152.33,152.31,3.2835]
[1729152635346,3.2829,152.35,152.31,3.2835]
[1729152635548,9.06,152.34,152.31,3.2835]
[1729152635945,3.2834,152.32,152.29,3.2838]
[1729152636243,8.0034,152.32,152.29,3.2838]
[1729152636452,9.06,152.3,152.26,3.31999159]
[1729152636650,12.3439,152.3,152.27,3.2844]
[1729152636845,12.3439,152.3,152.27,6.5064128]
[1729152637046,9.06,152.3,152.27,3.2220128]
[1729152637250,3.284,152.29,152.24,9.06]
[1729152637450,4.72,152.3,152.27,9.06]
[1729152637744,4.72,152.3,152.28,3.2842]
[1729152638150,4.72,152.3,152.27,12.36575689]
[1729152638353,4.72,152.3,152.29,3.284]
[1729152639253,4.72,152.3,152.29,6.60026595]
[1729152639749,12.3433,152.33,152.29,6.60026595]
[1729152639955,8.0034,152.32,152.29,6.60026595]
[1729152640155,4.72,152.31,152.29,6.60026595]
[1729152640851,8.0036,152.31,152.28,3.2841]
[1729152641058,9.06,152.3,152.28,3.2841]
[1729152641449,4.72,152.31,152.28,3.284]
[1729152641654,4.72,152.31,152.29,3.3433119]
[1729152641854,4.72,152.31,152.27,9.06]
[1729152642052,12.3434,152.32,152.28,3.2842]
[1729152642251,4.72,152.31,152.28,3.2842]
[1729152642452,4.72,152.31,152.27,9.06]
[1729152642653,4.72,152.31,152.28,3.2842]
[1729152643153,4.72,152.31,152.28,6.4872574]
[1729152643463,4.72,152.31,152.28,3.2842]
[1729152643759,9.06,152.3,152.28,3.2842]
[1729152644156,17.0638,152.3,152.27,6.48834275]
[1729152644357,17.0638,152.3,152.27,3.2843]
[1729152645057,17.0638,152.3,152.27,6.57341165]
[1729152645260,17.0638,152.3,152.27,3.2843]
[1729152645655,4.72,152.3,152.28,3.284]
[1729152645855,4.72,152.3,152.26,9.06]
[1729152646158,4.72,152.31,152.27,9.06]
[1729152646563,4.72,152.31,152.29,3.2839]
[1729152649768,8.0036,152.31,152.29,3.2839]
[1729152650766,13.78,152.31,152.27,9.06]
[1729152651066,17.0637,152.31,152.28,3.2841]
[1729152651463,3.2838,152.3,152.27,3.2843]
[1729152651664,4.72,152.31,152.26,12.36870758]
[1729152651862,13.78,152.31,152.26,12.36870758]
[1729152652062,17.0637,152.31,152.28,3.2842]
[1729152660274,13.78,152.31,152.27,9.06]
[1729152660473,2.8007,152.35,152.3,9.06]
[1729152660771,4.72,152.36,152.33,9.06]
[1729152660972,8.0025,152.36,152.34,3.2828]
[1729152661169,4.72,152.36,152.33,9.06]
[1729152661369,2.7822,152.4,152.34,9.06]
[1729152661564,6.0639,152.4,152.36,12.3423]
[1729152661765,4.72,152.39,152.36,9.06]
[1729152662073,8.002,152.39,152.36,12.3424]
[1729152662266,8.002,152.39,152.36,3.2824]
[1729152663071,17.062,152.39,152.36,3.2824]
[1729152663273,12.3424,152.37,152.34,3.2828]
[1729152665574,3.2827,152.36,152.33,3.2831]
[1729152666178,2.7822,152.4,152.27,7.29977648]
[1729152666179,9.06,152.34,152.27,7.29977648]
[1729152666375,9.06,152.33,152.27,5.95607648]
[1729152666573,9.06,152.31,152.27,4.59577648]
[1729152666966,12.3437,152.31,152.28,3.2842]
[1729152667578,9.06,152.31,152.28,6.5495762]
[1729152668878,9.06,152.31,152.29,3.284]
[1729152669473,9.06,152.32,152.3,3.2838]
[1729152669878,9.06,152.35,152.3,9.06]
[1729152670074,4.72,152.34,152.31,3.2834]
[1729152670874,8.003,152.34,152.31,3.2834]
[1729152672783,3.2831,152.33,152.31,3.2834]
[1729152672984,12.3431,152.33,152.31,3.2834]
[1729152673179,9.06,152.32,152.3,3.2836]
[1729152675287,9.06,152.32,152.28,3.2653762]
[1729152675487,9.06,152.31,152.29,3.2839]
[1729152675782,9.06,152.3,152.28,3.22156754]
[1729152676091,9.06,152.3,152.24,13.78]
[1729152676886,9.06,152.3,152.27,3.2843]
[1729152676887,12.3439,152.3,152.27,3.2843]
[1729152677084,12.3439,152.3,152.28,3.26820457]
[1729152677284,12.3439,152.3,152.27,3.2843]
[1729152678987,12.3439,152.3,152.27,6.64654866]
[1729152679379,3.2841,152.29,152.27,3.36224866]
[1729152679584,13.78,152.3,152.27,3.36224866]
[1729152679786,13.78,152.3,152.24,9.06]
[1729152680288,17.0639,152.3,152.27,3.2843]
[1729152681289,17.0639,152.3,152.27,6.51175828]
[1729152682582,4.72,152.3,152.27,3.22745828]
[1729152682883,4.72,152.3,152.28,3.2842]
[1729152683086,4.72,152.3,152.28,6.58458406]
[1729152683285,4.72,152.3,152.25,9.06]
[1729152683487,4.72,152.3,152.27,3.2843]
[1729152683488,8.0038,152.3,152.27,3.2843]
[1729152683691,8.0038,152.3,152.27,6.5344244]
[1729152685587,3.284,152.29,152.26,3.2845]
[1729152685891,4.72,152.3,152.25,9.06]
[1729152686393,9.06,152.29,152.23,1.4302]
[1729152686586,9.06,152.29,152.24,9.06]
[1729152686889,12.3441,152.29,152.26,3.2845]
[1729152687085,4.72,152.3,152.27,3.34385418]
[1729152687280,9.06,152.29,152.24,9.06]
[1729152687486,4.72,152.3,152.24,9.06]
[1729152687686,4.72,152.3,152.25,9.06]
[1729152687883,2.7289,152.33,152.27,9.06]
[1729152688087,4.72,152.33,152.29,9.06]
[1729152688279,9.319,152.43,152.32,9.06]
[1729152688480,3.2818,152.39,152.35,3.2826]
[1729152688788,4.72,152.4,152.36,9.06]
[1729152689389,10.5214,152.42,152.36,9.06]
[1729152689583,3.2817,152.4,152.36,12.3423]
[1729152690380,4.72,152.4,152.37,12.3421]
[1729152690586,4.72,152.4,152.37,9.06]
[1729152691088,4.72,152.4,152.37,12.3422]
[1729152691291,4.72,152.4,152.37,3.2822]
[1729152693083,8.0015,152.41,152.37,12.3422]
[1729152693287,9.06,152.39,152.35,3.2176908]
[1729152693490,9.06,152.39,152.33,9.06]
[1729152693693,9.06,152.39,152.33,12.40801388]
[1729152693887,3.2821,152.38,152.35,3.2825]
[1729152696603,3.2817,152.4,152.37,3.2822]
[1729152697392,4.72,152.41,152.33,3.34801388]
[1729152697591,17.0615,152.41,152.38,3.282]
[1729152698489,17.0615,152.41,152.38,6.50217532]
[1729152699090,8.0015,152.41,152.38,6.50217532]
[1729152699295,17.0615,152.41,152.38,6.50217532]
[1729152699893,8.0015,152.41,152.39,3.2818]
[1729152700091,3.2809,152.44,152.4,9.06]
[1729152700293,13.78,152.46,152.41,9.06]
[1729152700493,13.78,152.46,152.43,3.2809]
[1729152700801,8.0005,152.46,152.43,9.06]
[1729152701294,8.0005,152.46,152.43,12.3409]
[1729152702099,4.72,152.46,152.44,3.2807]
[1729152703496,4.72,152.46,152.45,3.2805]
[1729152703906,4.72,152.46,152.43,9.06]
[1729152704200,4.72,152.46,152.44,3.2807]
[1729152711200,9.06,152.45,152.38,1.64097748]
[1729152711396,9.06,152.44,152.38,9.06]
[1729152711903,3.281,152.43,152.4,3.2815]
[1729152712102,9.06,152.44,152.4,3.2815]
[1729152712803,12.3409,152.44,152.41,3.2814]
[1729152713703,3.2809,152.44,152.41,3.2814]
[1729152714202,3.2809,152.44,152.41,12.3414]
[1729152714404,70.94,152.48,152.43,9.06]
[1729152714707,4.72,152.47,152.43,9.06]
[1729152714900,3.2805,152.46,152.43,12.3409]
[1729152715800,3.281,152.43,152.41,9.06]
[1729152715995,9.06,152.45,152.41,9.06]
[1729152716707,3.2808,152.44,152.42,3.2811]
[1729152717005,9.06,152.46,152.42,3.2811]
[1729152717199,3.2806,152.45,152.42,12.3411]
[1729152719508,3.2808,152.44,152.42,12.3411]
[1729152721511,3.2808,152.44,152.37,7.67518228]
[1729152721512,3.2808,152.44,152.41,12.3413]
[1729152721813,3.2811,152.43,152.39,9.06]
[1729152722203,3.2811,152.43,152.4,3.2816]
[1729152722408,3.2811,152.43,152.37,7.67518228]
[1729152722409,9.06,152.43,152.38,9.06]
[1729152722710,3.2813,152.42,152.39,3.2817]
[1729152723707,13.78,152.43,152.38,9.06]
[1729152723910,9.06,152.4,152.37,3.34778228]
[1729152724111,9.06,152.4,152.34,9.06]
[1729152724307,9.06,152.4,152.34,12.32277751]
[1729152725214,3.282,152.39,152.36,9.06]
[1729152725815,3.282,152.39,152.35,3.2826]
[1729152726017,3.282,152.39,152.34,14.19]
[1729152726320,3.282,152.39,152.34,17.48822465]
[1729152726519,3.282,152.39,152.36,3.2823]
[1729152728325,3.2822,152.38,152.35,3.2826]
[1729152728616,4.72,152.39,152.34,3.29822465]
[1729152728818,4.72,152.39,152.32,1.3767]
[1729152729121,3.2824,152.37,152.34,3.2829]
[1729152729310,3.2824,152.37,152.35,3.35359554]
[1729152729914,3.2825,152.36,152.33,3.283]
[1729152730309,14.19,152.37,152.31,1.4309]
[1729152730534,3.2831,152.34,152.31,4.7143]
[1729152731521,3.2831,152.34,152.31,1.4309]
[1729152731717,4.72,152.35,152.3,3.2836]
[1729152732115,3.2831,152.33,152.3,3.2837]
[1729152732514,3.2832,152.33,152.28,3.2841]
[1729152732715,14.19,152.33,152.28,3.2841]
[1729152733028,18.91,152.35,152.27,2.7043]
[1729152733522,3.2834,152.32,152.29,3.2839]
[1729152735117,3.2836,152.31,152.28,3.2841]
[1729152736718,18.91,152.35,152.28,3.2841]
[1729152736913,18.91,152.35,152.29,3.284]
[1729152737520,3.2834,152.32,152.29,3.284]
[1729152737715,18.91,152.35,152.3,3.2837]
[1729152737920,3.2834,152.32,152.26,14.19]
[1729152738221,3.2834,152.32,152.29,3.284]
[1729152738932,3.2837,152.31,152.28,3.2841]
[1729152739635,4.72,152.31,152.27,3.2843]
[1729152740325,3.2839,152.3,152.27,3.2843]
[1729152741629,8.0037,152.31,152.28,3.2841]
[1729152741827,4.72,152.31,152.25,4.72]
[1729152742130,8.0031,152.33,152.25,4.72]
[1729152742330,8.0031,152.33,152.27,14.19]
[1729152743531,8.0031,152.33,152.3,3.2836]
[1729152743732,14.19,152.31,152.24,3.24734787]
[1729152743934,14.19,152.31,152.21,1.4113]
[1729152744122,14.19,152.31,152.21,4.64511057]
[1729152744328,15.6378,152.32,152.22,18.91]
[1729152744541,15.6378,152.32,152.22,23.52803448]
[1729152747035,3.2839,152.3,152.22,23.52803448]
[1729152747432,14.19,152.31,152.22,18.80803448]
[1729152747632,3.2843,152.28,152.24,3.285]
[1729152747834,4.72,152.29,152.22,4.61803448]
[1729152749040,3.2842,152.28,152.24,3.2849]
[1729152751241,4.72,152.29,152.24,3.2849]
[1729152751538,3.2844,152.27,152.24,3.2849]
[1729152751934,1.4478,152.32,152.23,9.08]
[1729152752131,4.72,152.31,152.26,9.08]
[1729152752334,13.8,152.31,152.26,9.08]
[1729152752729,3.284,152.29,152.26,3.2845]
[1729152752932,9.08,152.27,152.22,13.69803448]
[1729152755040,3.2847,152.26,152.23,3.2851]
[1729152756751,12.3647,152.26,152.23,3.2851]
[1729152756954,3.2849,152.25,152.23,3.2851]
[1729152757454,3.2847,152.26,152.23,3.2851]
[1729152760251,13.8,152.27,152.23,9.08]
[1729152760446,4.72,152.27,152.24,9.08]
[1729152760656,13.8,152.3,152.24,9.08]
[1729152761451,3.2843,152.28,152.25,3.2847]
[1729152764453,3.2843,152.28,152.26,3.2846]
[1729152766960,3.2843,152.28,152.25,3.2847]
[1729152768965,1.4304,152.34,152.25,9.08]
[1729152769158,6.1504,152.34,152.29,9.08]
[1729152769360,4.72,152.34,152.29,9.08]
[1729152769570,8.003,152.34,152.31,3.2835]
[1729152769859,4.72,152.34,152.3,9.08]
[1729152770253,4.72,152.34,152.29,3.2839]
[1729152770254,9.08,152.32,152.29,3.2839]
[1729152770862,4.72,152.34,152.29,9.08]
[1729152771157,4.72,152.34,152.3,3.2836]
[1729152771158,3.2833,152.33,152.3,3.2836]
[1729152771363,3.2833,152.33,152.29,9.08]
[1729152771865,3.2833,152.33,152.3,3.2836]
[1729152772759,12.3633,152.33,152.3,3.2836]